Cogmind - Beta 12 @@@ ROGUE MODE // 2023.10.03 @ 07:05:27 Player: tareth Result: Self-destructed Performance ------------- Evolutions (1) 500 Regions Visited (2) 400 Robots Destroyed (11) 55 Value Destroyed (310) 310 Prototype IDs (0) 0 Alien Tech Used (0) 0 Bonus (0) 0 TOTAL SCORE: 1265 Bonus ------- None Cogmind --------- Core Integrity 334/400 Matter 300/300 Energy 100/100 System Corruption 0% Temperature Cool (96) Movement Core (150) Ox2 Location -9/Materials Parts ------- > --- POWER (1) -------- (None) > --- PROPULSION (3) --- (None) > --- UTILITY (2) ------ Small Storage Unit > --- WEAPON (3) ------- Small Laser Light Assault Rifle > --- INVENTORY (8) ---- Ion Engine Ion Engine Aluminum Leg Aluminum Leg Aluminum Leg EM Pulse Gun Particle Gun Peak State ------------ > --- POWER ------------ Ion Engine > --- PROPULSION ------- Light Treads Light Treads > --- UTILITY ---------- Small Storage Unit Huge Storage Unit > --- WEAPON ----------- Light Assault Rifle Light Assault Rifle > --- INVENTORY -------- Ion Engine Aluminum Leg Aluminum Leg Compact Wheel Compact Wheel EM Pulse Gun [Rating: 7] Favorites ----------- Power Ion Engine Engine Ion Engine Propulsion Light Treads Treads Light Treads Leg Aluminum Leg Utility Small Storage Unit Storage Small Storage Unit Weapon Light Assault Rifle Energy Gun Small Laser Ballistic Gun Light Assault Rifle Build | -11 -10 -9 ------- Run | Jun Mat Mat Slots Evolved 2 | . . 2 Power . | . . . Propulsion 1 | . . 1 Utility . | . . . Weapon 1 | . . 1 Parts Attached 10 | 8 1 1 Power 1 | 1 . . Engine 1 | 1 . . Core . | . . . Reactor . | . . . Propulsion 4 | 4 . . Treads 2 | 2 . . Leg 2 | 2 . . Wheel . | . . . Hover . | . . . Flight . | . . . Utility 2 | 1 1 . Device . | . . . Storage 2 | 1 1 . Processor . | . . . Hackware . | . . . Protection . | . . . Artifact . | . . . Weapon 3 | 2 . 1 Energy Gun 1 | . . 1 Energy Cannon . | . . . Ballistic Gun 2 | 2 . . Ballistic Cannon . | . . . Launcher . | . . . Special Weapon . | . . . Impact Weapon . | . . . Slashing Weapon . | . . . Piercing Weapon . | . . . Special Melee Weapon . | . . . Unidentified Prototypes . | . . . Parts Lost 4 | . . 4 Power 1 | . . 1 Propulsion 2 | . . 2 Utility . | . . . Weapon 1 | . . 1 Highest Loss Streak 4 | . . 4 To Critical Strikes 1 | . . 1 Average Slot Usage (%) 82 | . 85 67 Engine 13 | . 14 10 Treads 27 | . 28 21 Storage 13 | . 14 11 Ballistic Gun 27 | . 28 22 Naked Turns . | . . . Heaviest Build 12 | 12 12 12 Greatest Support 40 | 40 40 40 Greatest Overweight (x) . | . . . Average Overweight (x) . | . . . Largest Inventory Capacity 25 | 8 25 8 Average Capacity 7 | 7 8 8 Most Carried 8 | 6 8 8 Average Carried 7 | 4 7 7 Final Capacity 8 | 8 8 8 Final Carried 8 | 6 8 7 Class Distribution -------------------- 96% | Mutant 3% | Gunner Dominant Class ---------------- Mutant | -10/Materials Mutant | -9/Materials Resources | -11 -10 -9 ----------- Run | Jun Mat Mat Matter Collected 357 | 208 136 13 Remotely . | . . . Salvage Created 353 | . 305 48 Parts 25 | . 22 3 Haulers Intercepted . | . . . Recyclers Shooed . | . . . Parts Field Recycled . | . . . Retrieved Matter . | . . . Parts Self-Destructed . | . . . Prevented . | . . . Kills | -11 -10 -9 ------- Run | Jun Mat Mat Combat Hostiles Destroyed 10 | . 7 3 Guns 10 | . 7 3 Classes Destroyed 3 | . 2 1 Watcher 1 | . 1 . Swarmer 3 | . . 3 Grunt 7 | . 7 . Best Kill Streak 3 | . 2 3 Combat Bots Only 3 | . 2 3 Max Kills in Single Turn 1 | . 1 1 Gunslinging . | . . . Exploded . | . . . Melee . | . . . Uniques/NPCs Destroyed . | . . . Combat | -11 -10 -9 -------- Run | Jun Mat Mat Damage Taken 611 | . 308 303 Core 133 | . 67 66 Absorbed by Shields . | . . . Core Remaining (%) 86 | 100 73 . Volleys Fired 35 | . 27 8 Largest 3 | . 2 3 Hottest 80 | . 40 80 Shots Fired 78 | . 54 24 Gun 78 | . 54 24 Cannon . | . . . Launcher . | . . . Special . | . . . Kinetic 70 | . 54 16 Thermal 8 | . . 8 Explosive . | . . . Electromagnetic . | . . . Robot Hit Streak 7 | . 7 5 Robot Miss Streak 4 | . 4 4 Penetration Max . | . . . Secondary Targets 1 | . 1 . Max Gunslinging Chain 1 | . 1 . Shots Hit Robots 48 | . 35 13 Core Hits 23 | . 20 3 Critical Kills . | . . . Critical Parts Destroyed . | . . . Critical Strikes . | . . . Melee Attacks . | . . . Impact . | . . . Slashing . | . . . Piercing . | . . . Sneak Attacks . | . . . Combat Hostiles . | . . . Follow-up Attacks . | . . . Damage Inflicted 394 | . 271 123 Guns 394 | . 271 123 Cannons . | . . . Explosions . | . . . Melee . | . . . Ramming . | . . . Kinetic 330 | . 271 59 Thermal 64 | . . 64 Explosive . | . . . Electromagnetic . | . . . Impact . | . . . Slashing . | . . . Piercing . | . . . Highest Corruption . | . . . Average Corruption . | . . . Corruption Purged . | . . . Corruption Blocked . | . . . Overload Shots . | . . . Overflow Damage . | . . . Projectiles . | . . . Explosions . | . . . Melee . | . . . Knockbacks . | . . . Impact . | . . . Kinetic . | . . . Secondary . | . . . Self-Inflicted Damage . | . . . Shots . | . . . Rammed . | . . . Targets Rammed . | . . . Kicked . | . . . Crushed . | . . . Highest Temperature 124 | . 24 124 Average Temperature 33 | . 11 57 Received Heat Transfer 207 | . 171 36 Siege Activations . | . . . Robots Corrupted . | . . . Combat Hostiles . | . . . Parts Fried . | . . . Impact Corruptions . | . . . Robots Melted . | . . . Combat Hostiles . | . . . Parts Melted . | . . . Heat Transferred 150 | . . 150 Parts Sabotaged . | . . . Parts Stolen . | . . . Parts Stripped . | . . . Power Chain Reactions . | . . . Missiles Intercepted . | . . . Alert | -11 -10 -9 ------- Run | Jun Mat Mat Peak Influence 123 | . 117 123 Initial 33 | . . 33 Average 45 | . 52 48 Maximum Alert Level . | . . . Low Security (%) 100 | 100 100 100 Level 1 . | . . . Level 2 . | . . . Level 3 . | . . . Level 4 . | . . . Level 5 . | . . . High Security . | . . . Max Security . | . . . Squads Dispatched 1 | . . 1 Investigation . | . . . Extermination . | . . . Reinforcement 1 | . . 1 Assault . | . . . Garrison . | . . . Intercept . | . . . Searches Triggered . | . . . Construction Impeded . | . . . Haulers Reinforced . | . . . Active Scanning Responses . | . . . Cargo Convoy Interrupts . | . . . Stealth | -11 -10 -9 --------- Run | Jun Mat Mat Distress Signals 3 | . 2 1 Communications Jammed . | . . . Distress Signals . | . . . Times Spotted 18 | . 10 8 Peak Tracking Total 9 | . 3 9 Tactical Retreats 1 | . 1 . Traps | -11 -10 -9 ------- Run | Jun Mat Mat Traps Triggered . | . . . Indirectly . | . . . Trap Hack Attempts . | . . . Triggered . | . . . Disarmed . | . . . Reprogrammed . | . . . Reused . | . . . Traps Extracted . | . . . Installed . | . . . Triggered . | . . . Machines | -11 -10 -9 ---------- Run | Jun Mat Mat Machines Disabled . | . . . Max in Single Turn . | . . . Machines Repaired . | . . . Machines Sabotaged . | . . . Overloaded Fab Kills . | . . . Hacking | -11 -10 -9 --------- Run | Jun Mat Mat Machines Accessed 1 | . 1 . Terminals 1 | . 1 . Fabricators . | . . . Repair Stations . | . . . Recycling Units . | . . . Scanalyzers . | . . . Garrison Access . | . . . Total Hacks 1 | . 1 . Successful . | . . . Failed 1 | . 1 . Catastrophic . | . . . Database Lockouts . | . . . Manual 1 | . 1 . Terminals 1 | . 1 . Fabricators . | . . . Repair Stations . | . . . Recycling Units . | . . . Scanalyzers . | . . . Garrison Access . | . . . Terminal Hacks . | . . . Fabricator Hacks . | . . . Repair Station Hacks . | . . . Recycling Unit Hacks . | . . . Scanalyzer . | . . . Garrison Access Hacks . | . . . Unauthorized Hacks . | . . . Terminals . | . . . Fabricators . | . . . Repair Stations . | . . . Recycling Units . | . . . Scanalyzers . | . . . Garrison Access . | . . . Data Cores Recovered . | . . . Used . | . . . Hacking Detections . | . . . Full Trace Events . | . . . Feedback Events . | . . . Feedback Blocked . | . . . Robot Schematics Acquired . | . . . Robots Built . | . . . Authchips . | . . . Time . | . . . Total Robot Build Rating . | . . . Part Schematics Acquired . | . . . Parts Built . | . . . Authchips . | . . . Time . | . . . Total Part Build Rating . | . . . Parts Repaired . | . . . Time . | . . . Parts Recycled . | . . . Recycled Matter . | . . . Retrieved Matter . | . . . Retrieved Components . | . . . Parts Scanalyzed . | . . . Part Schematics Acquired . | . . . Parts Damaged . | . . . Bothacking | -11 -10 -9 ------------ Run | Jun Mat Mat Used RIF Installer . | . . . Robots Hacked . | . . . Non-combat . | . . . Combat . | . . . Robot Hacks Applied . | . . . Relay Couplers Released . | . . . Fabnet Peak Effective % . | . . . Robots Rewired . | . . . Allies Hacked . | . . . Hacks Repelled . | . . . Allies | -11 -10 -9 -------- Run | Jun Mat Mat Total Allies . | . . . Largest Group . | . . . Highest-Rated Group . | . . . Highest-Rated Ally . | . . . Total Orders . | . . . Ally Attacks . | . . . Total Damage . | . . . Kills . | . . . Allies Corrupted . | . . . Allies Melted . | . . . Intel | -11 -10 -9 ------- Run | Jun Mat Mat Robot Analysis Total . | . . . Derelict Logs Recovered . | . . . Drone Launches . | . . . Drone Recoveries . | . . . Exploration | -11 -10 -9 ------------- Run | Jun Mat Mat Turns Passed 979 | 115 759 105 Spaces Moved 525 | 69 406 50 Core 15 | 15 . . Treads 510 | 54 406 50 Legs . | . . . Wheels . | . . . Hover . | . . . Flight . | . . . Fastest Speed 50 | 50 160 160 Average Speed 156 | 136 160 160 Slowest Speed 160 | 160 160 160 Overloaded Moves . | . . . Propulsion Burnouts . | . . . Robots Hopped . | . . . Cave-ins Triggered . | . . . Exploration Rate (%) 25 | 4 60 12 Regions Visited 2 Branch Regions . Pre-discovered Areas . | . . . Known Exits Taken . | . . . Unknown Exits Taken 2 | 1 1 . Scrap Searched . | . . . Spaces Dug . | . . . Terrain Destroyed . | . . . Melee . | . . . Projectile . | . . . AOE . | . . . Terrain Rammed . | . . . Walls Destroyed . | . . . Machines Disabled . | . . . Actions | -11 -10 -9 --------- Run | Jun Mat Mat Total 622 | 88 474 60 Wait 37 | 3 33 1 Move 523 | 68 405 50 Hop . | . . . Pick Up 13 | 9 4 . Fast Attach 4 | 3 1 . Attach 4 | 3 . 1 Detach 1 | . 1 . Swap 2 | 2 . . Drop 3 | . 3 . Fire 35 | . 27 8 Melee . | . . . Ram . | . . . Kick . | . . . Crush . | . . . Escape Stasis . | . . . Rewire . | . . . Trap . | . . . Miscellaneous . | . . . Route ------- -11/Junkyard -10/Materials -9/Materials History --------- Turn | Location | Event 6 | -11/Junkyard | Discovered new exit (range 15) 116 | -11/Junkyard | Entered Materials 304 | -10/Materials | Build established: Mutant 682 | -10/Materials | Discovered new exit (range 16) 875 | -10/Materials | Entered another Materials area 875 | -9/Materials | Evolved 2 slots: Propulsion x1, Weapon x1 980 | -9/Materials | Self-destructed Last Messages --------------- 00947_ Critical hit (Burn: +37). 00948_ ALERT: Hostiles spotted, dispatching reinforcements to Terminal M010. 00955_ K-01 Serf collects debris. 00959_ K-01 Serf cleans the Electrolysis Chamber. 00966_ K-01 Serf collects debris. 00969_ S-10 Pest destroyed. 00970_ Critical hit (Destroy). 00970_ Lgt. Treads destroyed. 00972_ S-10 Pest destroyed. 00972_ R-06 Scavenger collects Flight Unit. 00975_ S-10 Pest destroyed. 00975_ R-06 Scavenger collects Flight Unit. 00976_ Acquired 13 matter. 00976_ K-01 Serf cleans the Electrolysis Chamber. 00977_ Ion Engine destroyed. 00978_ R-06 Scavenger collects Lgt. Ion Engine. 00980_ Lgt. Assault Rifle destroyed. 00980_ Lgt. Treads destroyed. 00980_ K-01 Serf cleans the Electrolysis Chamber. Map ----- +----------------------------------------------------+ | ??????????????????????????????????????# ##### | | ??????????????????????????????????????# # # | | ??????????????????????????????????????#= # # | | ??????????????????????????????????????# # # | | ???????????????????????????????###########+### + | | ???????????????????????????????# # | | ???????????????????????????????# # | | ???????????????????????????????# # | | ???????????????????????????????# #######+####### | | ???????????????????????????????# #???# #??? | | ???????????????????????????????# #???#""" #??? | | ??????????????????????????##???# #???#""" #??? | | ?????????????????????###### #### #???#""" #??? | | ?????????????????????? ]!! # #???# #??? | | ?????????????????????# ]! # #???# #??? | | ?????????????????????# """ ]! # #???########??? | | ?????????????????????# """ # #?????????????? | | ?????????????????##### """ # #?????????????? | | ?????????????????? + # ####### ??? | | ??????????????????#??# # #?? | | ?????????????????"""?# / T ???? | | ??????????????##""T""#######+### #?? | | ?????????????? #g ###+######## ??? | | ??????????????? r#Y #?? ????????? #??? | | ???????????????????"" """%lr #??""??????????????? | | ???????????????????"" """@# #??"" ?????????????? | | ???????????????????"" """ # #??"" ?????????????? | | ????????????????? k # +??"" "????????????? | | ?????????????????########## #???? ????????????? | | ??????????????????????????# #?????#????????????? | | ?????????????????????????? #??????????????????? | | ?????????????????????????? #??????????????????? | | ?????????????????????????? #??????????????????? | | ?????????????????????????? #??????????????????? | | ?????????????????????????? /??????????????????? | | ?????????????????????????? #??????????????????? | | ??????????????????????????# #??????????????????? | | ??????????????????????????? ??????????????????? | | ??????????????????????????? ???????????????????? | | ?????????????????????????????????????????????????? | | ?????????????????????????????????????????????????? | | ?????????????????????????????????????????????????? | | ?????????????????????????????????????????????????? | | ?????????????????????????????????????????????????? | | ?????????????????????????????????????????????????? | | ?????????????????????????????????????????????????? | | ?????????????????????????????????????????????????? | | ?????????????????????????????????????????????????? | | ?????????????????????????????????????????????????? | | ?????????????????????????????????????????????????? | +----------------------------------------------------+ Best States ------------- Heat Dissipation 28 Energy Generation 10 Energy Capacity 250 Matter Stores 300 Matter Capacity 300 Sight Range 16 Terrain Scan Density 10 Evasion (%) 50 Recoil Reduction 2 Item Schematics ----------------- None Robot Schematics ------------------ None Fabricated ------------ Nothing Alien Tech Used ----------------- None Achievements -------------- None Challenges ------------ None Game ------ Seed DamperFactoryCutter Manual? 0 Play Time 00:11:28 Cumulative 29.1 hours Start 2023.10.03 @ 06:43:54 End 2023.10.03 @ 07:05:27 Sessions 1 Manual Loads 0 Difficulty Rogue Special Mode None Game No. 29 Rogue 29 Adventurer 0 Explorer 0 Win Type - Total 0 Types 0/0/0/0/0/0/0/0/0 Lore% 19 Gallery% 23 Achievement% 23 Wizard Run 0 Options --------- ASCII 0 Keyboard 0 Movement Numpad Keybinds 0 Fullscreen 1 Font 18/SmallcapsGlow Map View 76x50 Tactical HUD 1 Map Filters NONE Filters NONE Steam 1 RUN: ab66920b-36ab-429d-b912-48660a168c13